bitfinex/quotes_ETHUSD_20241223
["timestamp","ask_amount","ask_price","bid_price","bid_amount"]
[1734957715865,2.98515,3350.0,3349.6,2.89824752]
[1734957716016,2.98515,3350.0,3349.6,2.64708554]
[1734957716376,0.7519,3350.2,3349.6,2.64708554]
[1734957716581,2.9852,3349.9,3349.7,1.03043864]
[1734957717018,2.9852,3349.9,3349.8,0.07096462]
[1734957717357,2.9852,3349.9,3349.7,1.03043864]
[1734957717557,2.9852,3349.9,3349.8,0.07096462]
[1734957718239,2.9852,3349.9,3349.3,1.78978498]
[1734957718566,2.9852,3349.9,3349.4,1.9272452]
[1734957719555,2.9852,3349.9,3349.5,2.82862379]
[1734957719968,2.9852,3349.9,3349.6,0.07098894]
[1734957720321,2.9852,3349.9,3349.6,2.64844814]
[1734957720539,2.98502,3350.1,3349.6,2.64844814]
[1734957720982,2.98509,3350.0,3349.6,2.64844814]
[1734957721470,2.98509,3350.0,3349.7,2.5774592]
[1734957721656,2.98509,3350.0,3349.8,0.07096462]
[1734957721860,2.98509,3350.0,3349.7,2.5774592]
[1734957722032,2.98525,3349.8,3349.7,2.5774592]
[1734957722369,2.98525,3349.8,3349.5,1.24007725]
[1734957722370,2.98543,3349.6,3349.5,1.24007725]
[1734957723066,2.98524,3349.9,3349.5,1.62707725]
[1734957723228,2.98524,3349.9,3349.5,0.387]
[1734957723428,2.98527,3349.8,3349.5,0.387]
[1734957724529,2.98527,3349.8,3349.6,1.03072633]
[1734957725159,2.98527,3349.8,3349.5,0.387]
[1734957728807,2.98527,3349.8,3349.6,1.03083472]
[1734957729115,2.98534,3349.7,3349.6,1.03083472]
[1734957729716,3.77814,3349.7,3349.6,1.03083472]
[1734957729895,2.9856,3349.4,3349.3,1.24007725]
[1734957730860,2.9856,3349.4,3349.0,1.24007725]
[1734957731060,2.98565,3349.4,3349.0,1.24007725]
[1734957731812,2.98565,3349.4,3349.1,2.577982]
[1734957732409,4.83191517,3349.2,3349.1,2.577982]
[1734957732566,4.77791517,3349.2,3349.1,2.577982]
[1734957732964,3.74987,3349.1,3349.0,1.24007725]
[1734957734099,0.764,3349.1,3348.2,1.62707725]
[1734957734303,0.764,3349.1,3349.0,0.05965071]
[1734957734503,0.764,3349.1,3348.2,8.81941406]
[1734957734658,0.764,3349.1,3348.3,2.98658]
[1734957734858,0.764,3349.1,3348.4,0.05972372]
[1734957735259,0.764,3349.1,3348.5,0.25085739]
[1734957735461,0.764,3349.1,3348.6,0.51342322]
[1734957736824,3.74989,3349.1,3348.6,0.51342322]
[1734957737374,3.74989,3349.1,3348.6,0.05969938]
[1734957737807,3.74989,3349.1,3348.3,4.24007725]
[1734957738005,0.764,3349.1,3348.7,0.05968721]
[1734957738214,0.764,3349.1,3348.3,4.24007725]
[1734957738510,0.8014,3349.0,3348.3,1.24007725]
[1734957738685,0.8014,3349.0,3348.4,1.08898571]
[1734957739095,0.8014,3349.0,3348.4,2.11928055]
[1734957740217,0.8014,3349.0,3348.4,1.08898571]
[1734957742289,0.8014,3349.0,3348.4,0.05972372]
[1734957743520,0.7756,3349.2,3348.4,0.05972372]
[1734957743677,0.7756,3349.2,3348.4,0.31038771]
[1734957744480,0.7756,3349.2,3348.4,0.05972372]
[1734957744687,0.7873,3349.6,3348.7,0.387]
[1734957745019,2.49052816,3350.0,3349.2,0.387]
[1734957745216,2.49052816,3350.0,3349.3,0.02985206]
[1734957745375,2.49052816,3350.0,3349.5,2.9855]
[1734957745577,0.7873,3350.1,3349.6,0.30752915]
[1734957745818,0.7873,3350.1,3349.6,0.36743211]
[1734957746178,0.7873,3350.1,3349.6,0.05990296]
[1734957746594,0.7873,3350.1,3349.4,3.0]
[1734957746794,0.7873,3350.1,3349.7,0.0598908]
[1734957747022,0.7873,3350.1,3349.4,3.0]
[1734957747525,0.7873,3350.1,3349.5,0.05991512]
[1734957747722,0.7873,3350.1,3349.6,0.60455351]
[1734957748125,0.7873,3350.1,3349.7,0.0598908]
[1734957751228,2.9842,3351.0,3349.9,2.98515]
[1734957751424,0.7741,3350.9,3350.0,0.02984865]
[1734957751583,0.7741,3350.9,3350.2,0.387]
[1734957751920,0.7741,3350.9,3350.3,0.05981784]
[1734957753223,1.13487807,3351.6,3350.3,0.0896618]
[1734957753526,0.7741,3351.5,3350.7,3.37144]
[1734957753736,0.7741,3351.5,3350.7,3.708584]
[1734957753941,0.7741,3351.5,3350.8,0.05920063]
[1734957759601,0.7741,3351.5,3350.8,3.04353063]
[1734957760744,0.826,3352.2,3351.3,2.9839]
[1734957760947,0.826,3352.2,3351.3,3.32099]
[1734957761267,0.826,3352.2,3351.4,0.05767735]
[1734957761672,3.77963,3351.5,3351.4,0.051829]
[1734957761873,0.7959,3351.4,3349.8,1.86011588]
[1734957762074,0.7959,3350.7,3349.8,1.86011588]
[1734957762233,3.78036,3350.7,3350.1,0.04022013]
[1734957762568,2.98465,3350.5,3350.4,1.24007725]
[1734957762969,2.98465,3350.5,3350.4,1.27663298]
[1734957763142,3.80485,3350.5,3350.4,1.27663298]
[1734957763570,3.80485,3350.5,3350.4,0.03655573]
[1734957764078,2.98475,3350.4,3349.3,2.98567]
[1734957764376,2.98475,3350.4,3349.4,0.37912432]
[1734957765330,2.98525,3349.8,3349.4,0.03667732]
[1734957765529,8.95926915,3349.5,3349.4,7.32e-06]
[1734957765856,3.78643,3348.7,3348.3,2.48015451]
[1734957766059,3.78643,3348.7,3348.6,1.27023569]
[1734957766233,4.463675,3348.7,3348.6,1.27023569]
[1734957766633,4.463675,3348.7,3348.6,0.03015844]
[1734957767080,2.98632,3348.6,3347.5,0.31170413]
[1734957767281,4.463675,3348.7,3347.5,0.31170413]
[1734957767441,2.98661,3348.3,3347.6,0.03028017]
[1734957767980,1.477445,3348.7,3347.6,0.03028017]
[1734957768166,2.9865,3348.4,3347.6,0.03028017]
[1734957768362,1.477445,3348.7,3347.6,0.03028017]
[1734957768680,0.7463555,3348.6,3347.6,0.03028017]
[1734957768883,2.98651,3348.4,3347.6,0.03028017]
[1734957769243,0.7463555,3348.6,3347.6,0.03028017]
[1734957769452,2.98642,3348.5,3347.6,0.03028017]
[1734957769986,0.8002,3348.7,3347.6,0.03028017]
[1734957770290,3.78645,3348.7,3347.6,0.03028017]
[1734957770788,0.8002,3348.7,3347.6,0.03028017]
[1734957770956,2.98571,3349.3,3347.9,2.98692]
[1734957771160,2.9856,3349.4,3348.1,3.42555]
[1734957771371,2.9856,3349.4,3348.2,5.98666]
[1734957771567,2.9856,3349.4,3348.2,6.01686712]
[1734957771877,2.98573,3349.3,3348.2,3.03020712]
[1734957772073,0.4050675,3349.2,3348.2,0.03020712]
[1734957772398,2.98598,3349.0,3348.2,0.03020712]
[1734957772593,2.98585,3349.2,3348.2,0.03020712]
[1734957772799,2.17354915,3349.4,3348.2,0.03020712]
[1734957773000,2.9857,3349.3,3348.2,0.03020712]
[1734957773153,2.98579,3349.2,3348.2,0.03020712]
[1734957773358,3.60821842,3349.2,3348.2,0.03020712]
[1734957774962,0.62242842,3349.2,3348.2,0.03020712]
[1734957775194,2.98591,3349.1,3348.2,0.03020712]
[1734957775590,0.62242842,3349.2,3348.2,0.03020712]
[1734957776802,3.60821842,3349.2,3348.2,0.03020712]
[1734957777199,0.57817676,3349.1,3348.2,0.03020712]
[1734957778014,3.56404676,3349.1,3348.2,0.03020712]
[1734957778191,0.57817676,3349.1,3348.2,0.03020712]
[1734957778394,2.98571,3349.3,3348.2,0.03020712]
[1734957778701,2.98581,3349.2,3348.2,0.03020712]
[1734957778906,4.050545,3349.5,3348.2,0.03020712]
[1734957779115,2.98572,3349.3,3348.2,3.01684712]
[1734957779298,3.3907865,3349.3,3348.2,3.36241183]
[1734957780708,0.4050665,3349.3,3348.2,0.03020712]
[1734957780910,2.98583,3349.2,3348.2,0.03020712]
[1734957781118,2.98563,3349.4,3348.2,3.01687712]
[1734957781333,2.98569,3349.3,3348.2,3.01687712]
[1734957783938,0.7664,3349.5,3348.3,0.4388]
[1734957784252,3.0,3350.0,3349.2,0.4388]
[1734957784253,0.7774,3350.0,3349.2,0.4388]
[1734957784750,0.7774,3350.0,3349.3,0.03245338]
[1734957791141,0.6062056,3350.4,3349.3,0.03245338]
[1734957791451,1.3907056,3350.4,3349.3,0.03245338]
[1734957791652,2.98492,3350.2,3349.3,0.03245338]
[1734957791850,2.98534,3349.7,3349.3,0.03245338]
[1734957792149,0.35642548,3350.3,3348.9,0.4388]
[1734957792563,2.98534,3349.8,3349.0,0.03206488]
[1734957793358,2.98499,3350.1,3349.0,0.03206488]
[1734957793561,0.33414155,3350.0,3349.0,3.01801488]
[1734957796082,2.98529,3349.8,3349.0,0.03206488]
[1734957797763,3.79015,3349.7,3349.0,0.03206488]
[1734957799669,0.8048,3349.7,3349.0,0.03206488]
[1734957800071,0.8048,3349.7,3348.6,0.4388]
[1734957800072,2.98585,3349.2,3348.6,0.4388]
[1734957800381,0.298585,3349.1,3348.7,0.03166282]
[1734957801265,2.98564,3349.4,3348.7,0.03166282]
[1734957803704,2.98572,3349.3,3348.7,0.03166282]
[1734957803867,2.98575,3349.3,3348.7,0.03166282]
[1734957806588,0.60438442,3349.6,3348.7,0.03166282]
[1734957806821,2.98554,3349.5,3348.7,0.03166282]
[1734957807124,3.42511244,3349.4,3348.7,0.03166282]
[1734957809509,2.98539,3349.7,3348.7,0.03166282]
[1734957809709,2.98534,3349.8,3348.8,0.4388]
[1734957810011,2.98562,3349.4,3348.9,0.03185723]
[1734957810388,2.98579,3349.2,3348.9,0.03185723]
[1734957810573,2.98579,3349.2,3348.5,0.4388]
[1734957811079,0.58615769,3349.9,3348.7,0.4388]
[1734957811275,0.33414155,3350.0,3349.3,3.0]
[1734957811505,2.49052816,3350.1,3349.4,0.4388]
[1734957811775,2.49052816,3350.1,3349.4,0.47059013]
[1734957812210,2.98521,3349.9,3349.4,0.47059013]
[1734957814006,0.35642548,3350.3,3349.4,0.47059013]
[1734957814186,2.98498,3350.1,3349.4,0.47059013]
[1734957816221,2.98482,3350.3,3349.4,0.47059013]
[1734957817625,2.9849,3350.2,3349.5,0.25040436]
[1734957817832,2.9849,3350.2,3349.5,0.28203859]
[1734957818507,2.9849,3350.2,3349.5,0.03163423]
[1734957818695,3.28339,3350.2,3349.5,0.03163423]
[1734957819533,0.29849,3350.2,3349.5,0.03163423]
[1734957819906,2.98482,3350.3,3349.5,0.03163423]
[1734957827642,2.98466,3350.5,3349.5,0.03163423]
[1734957827945,1.42075406,3350.6,3349.5,0.03163423]
[1734957828244,2.98471,3350.4,3349.5,0.03163423]
[1734957828646,4.40532406,3350.6,3349.5,0.03163423]
[1734957828861,4.40532406,3350.6,3349.7,2.98532]
[1734957828862,0.58935406,3350.6,3349.7,2.98532]
[1734957829344,0.58935406,3350.6,3349.8,0.03117908]
[1734957829566,0.58935406,3350.6,3349.9,0.4388]
[1734957829759,0.58935406,3350.6,3350.0,0.03115476]
[1734957843349,3.57390406,3350.6,3350.0,0.03115476]
[1734957844983,3.78343,3350.9,3350.0,0.03115476]
[1734957845297,0.8172,3351.3,3350.2,2.98488]
[1734957845465,0.5874528,3351.1,3350.3,2.98478]
[1734957845660,0.5874528,3351.1,3350.3,0.03066843]
[1734957846051,0.5874528,3351.1,3350.1,3.42374]
[1734957846252,0.5874528,3351.1,3350.4,0.03065627]
[1734957846566,0.5874528,3351.1,3350.5,0.03064412]
[1734957846779,1.05939736,3351.1,3350.1,3.42374]
[1734957846980,1.05939736,3351.1,3350.2,0.03068059]
[1734957847280,1.05939736,3351.1,3350.2,0.28143091]
[1734957847892,1.05939736,3351.1,3350.3,0.25075032]
[1734957848322,1.05939736,3351.1,3350.4,0.03065627]
[1734957848475,2.98448,3350.7,3350.4,0.03065627]
[1734957848679,2.98448,3350.7,3350.1,0.4388]
[1734957849312,2.98448,3350.7,3350.2,0.03068059]
[1734957854594,2.98431,3350.9,3350.2,0.03068059]
[1734957855336,2.9844,3350.8,3350.2,0.03068059]
[1734957855497,0.3817,3350.7,3350.2,0.03068059]
[1734957859921,2.98447,3350.7,3350.2,0.03068059]
[1734957863238,2.98431,3350.9,3350.2,0.03068059]
[1734957863929,0.8326,3351.0,3350.2,0.03068059]
[1734957864111,2.98437,3350.8,3350.2,0.03068059]
[1734957867381,0.8326,3351.0,3350.2,0.03068059]
[1734957867582,0.73825255,3350.9,3350.2,0.03068059]
[1734957869924,2.9842,3351.0,3350.2,0.03068059]
[1734957870138,6.54992552,3351.1,3350.3,0.4388]
[1734957870486,6.54992552,3351.1,3350.4,0.03050011]
[1734957870933,9.53401552,3351.1,3350.4,0.03050011]
[1734957871096,2.96247272,3351.1,3350.4,0.03050011]
[1734957871299,5.49052816,3351.3,3350.5,0.4388]
[1734957871512,2.9841,3351.1,3350.5,0.4388]
[1734957871832,2.9841,3351.1,3350.6,0.03026967]
[1734957872188,2.98422,3351.0,3350.5,0.4388]
[1734957872421,5.49052816,3351.3,3350.0,4.84514588]
[1734957872422,3.73768,3350.8,3350.6,0.03026967]
[1734957872632,3.358218,3350.7,3350.6,0.03026967]
[1734957872845,2.98464,3350.5,3350.2,1.24007725]
[1734957872985,3.358228,3350.7,3350.6,0.03026967]
[1734957873186,3.358228,3350.7,3350.2,1.24007725]
[1734957873387,3.358228,3350.7,3350.3,0.03030614]
[1734957873589,3.96807668,3350.7,3350.0,0.4388]
[1734957873835,3.96807668,3350.7,3350.1,0.03033045]
[1734957873836,0.60984868,3350.7,3350.1,0.03033045]
[1734957874512,0.60984868,3350.7,3350.1,2.60689855]
[1734957874691,2.98438,3350.8,3350.1,2.60689855]
[1734957875153,3.0,3351.0,3350.2,0.4388]
[1734957875496,3.60022358,3351.0,3350.3,0.03030614]
[1734957875846,4.88242277,3351.0,3350.3,0.28118756]
[1734957876448,4.88242277,3351.0,3350.3,0.03030614]
[1734957878220,1.89817277,3351.0,3350.3,0.03030614]
[1734957878393,0.60022358,3351.0,3350.3,0.03030614]
[1734957878733,0.60022358,3351.0,3350.4,1.0300866]
[1734957879098,2.98454,3350.6,3350.5,0.03028182]
[1734957880006,2.98454,3350.6,3350.2,0.4388]
[1734957880203,2.98454,3350.6,3350.3,0.0302874]
[1734957880420,2.98454,3350.6,3350.2,0.4388]
[1734957880597,2.98454,3350.6,3350.3,0.0302874]
[1734957880798,2.98454,3350.6,3350.2,0.4388]
[1734957881021,2.98454,3350.6,3350.3,0.0302874]
[1734957881223,2.98454,3350.6,3350.2,0.4388]
[1734957881433,2.98454,3350.6,3350.3,0.0302874]
[1734957881798,2.98454,3350.6,3350.2,0.4388]
[1734957882000,2.98454,3350.6,3350.3,0.0302874]
[1734957882200,2.98454,3350.6,3350.2,0.4388]
[1734957882433,2.98454,3350.6,3350.3,0.0302874]
[1734957882925,2.98454,3350.6,3350.2,0.4388]
[1734957883114,2.98454,3350.6,3350.4,0.03027524]
[1734957883309,2.98454,3350.6,3350.2,0.4388]
[1734957883310,2.98435,3350.9,3350.3,0.0302874]
[1734957883515,2.98435,3350.9,3350.5,0.03026309]
[1734957883840,3.67100017,3350.9,3350.6,0.0302322]
[1734957884334,2.98441,3350.8,3350.2,0.4388]
[1734957884843,2.98441,3350.8,3350.3,0.03026867]
[1734957885140,2.98441,3350.8,3350.3,2.606667]
[1734957885338,2.98441,3350.8,3350.3,2.57639833]
[1734957885643,3.49067838,3350.8,3350.4,0.03025651]
[1734957886649,3.49067838,3350.8,3350.2,0.4388]
[1734957886943,2.98441,3350.8,3350.5,0.03024435]
[1734957887114,2.98441,3350.8,3350.2,0.4388]
[1734957887316,2.98441,3350.8,3350.6,0.0302322]
[1734957887518,2.98441,3350.8,3350.2,0.4388]
[1734957887739,3.58441358,3351.0,3350.7,0.03022004]
[1734957887968,0.68663417,3350.9,3350.2,0.4388]
[1734957888113,3.58441358,3351.0,3350.2,0.4388]
[1734957888315,3.58441358,3351.0,3350.3,0.03026867]
[1734957888568,3.58441358,3351.0,3350.3,0.28108014]
[1734957889087,3.58441358,3351.0,3350.3,2.85746324]
[1734957889273,3.58441358,3351.0,3350.3,2.60665177]
[1734957889872,3.58441358,3351.0,3350.4,2.5763831]
[1734957890282,3.58441358,3351.0,3350.5,0.03024435]
[1734957890884,3.58441358,3351.0,3350.5,1.06079759]
[1734957891870,3.58441358,3351.0,3350.5,0.03024435]
[1734957892253,3.58441358,3351.0,3350.2,1.67887725]
[1734957892460,3.58441358,3351.0,3350.6,0.0302322]
[1734957892621,3.58441358,3351.0,3350.7,0.4388]
[1734957892876,2.98427,3350.9,3350.8,0.03020789]
[1734957893455,0.60022358,3351.0,3350.7,0.4388]
[1734957893820,0.60022358,3351.0,3350.8,0.03020789]
[1734957894068,0.60022358,3351.0,3350.7,0.4388]
[1734957894274,3.58444358,3351.0,3350.7,0.4388]
[1734957894417,3.58444358,3351.0,3350.8,0.03020789]
[1734957894767,3.58444358,3351.0,3350.7,0.4388]
[1734957895076,3.58444358,3351.0,3350.8,0.03020789]
[1734957895416,3.58444358,3351.0,3350.7,0.4388]
[1734957895616,3.58444358,3351.0,3350.8,0.03020789]
[1734957896016,3.58444358,3351.0,3350.7,0.4388]
[1734957896252,6.50223772,3351.3,3350.8,0.03020789]
[1734957896449,0.59233042,3351.1,3350.8,0.03020789]
[1734957896670,0.59233042,3351.1,3350.7,0.4388]
[1734957896841,0.59233042,3351.1,3350.9,0.03019574]
[1734957897043,0.59233042,3351.1,3350.8,0.03020789]
[1734957897241,0.59233042,3351.1,3350.7,0.4388]
[1734957897425,0.59233042,3351.1,3350.9,0.03019574]
[1734957897628,0.59233042,3351.1,3350.7,0.4388]
[1734957897943,0.59233042,3351.1,3350.8,0.03020789]
[1734957898329,0.59233042,3351.1,3350.7,0.4388]
[1734957898677,0.59233042,3351.1,3350.9,0.03019574]
[1734957898880,0.59233042,3351.1,3350.8,0.03020789]
[1734957899080,0.59233042,3351.1,3350.7,0.4388]
[1734957899311,0.59233042,3351.1,3350.9,0.02983354]
[1734957899609,0.59233042,3351.1,3350.8,0.0298457]
[1734957899810,0.59233042,3351.1,3350.7,0.4388]
[1734957899948,0.59233042,3351.1,3350.9,0.02983354]
[1734957900305,3.57649042,3351.1,3350.7,0.4388]
[1734957900513,2.98419,3351.0,3350.5,0.4388]
[1734957900792,2.98419,3351.0,3350.4,1.24007725]
[1734957900793,2.98434,3350.9,3350.8,0.0298457]
[1734957901011,3.80628,3351.0,3350.4,1.24007725]
[1734957901145,1.02771956,3350.9,3350.4,1.24007725]
[1734957901345,3.80628,3351.0,3350.5,0.02988216]
[1734957901647,0.62146938,3350.9,3350.2,1.24007725]
[1734957901853,2.98432,3350.9,3350.6,0.02987001]
[1734957902082,2.98432,3350.9,3350.2,1.24007725]
[1734957902286,0.59233042,3351.1,3350.7,0.02985785]
[1734957902498,2.9842,3351.0,3350.7,0.4388]
[1734957902681,2.9843,3350.9,3350.1,0.4388]
[1734957902872,2.9843,3350.9,3350.2,0.75518627]
[1734957903050,6.06698858,3351.1,3350.2,0.78410445]
[1734957903484,6.06698858,3351.1,3350.3,0.68972173]
[1734957903792,3.57646042,3351.1,3350.3,1.92979898]
[1734957903996,3.57646042,3351.1,3350.4,0.02889386]
[1734957904141,3.57646042,3351.1,3350.4,0.27981559]
[1734957904580,3.57646042,3351.1,3350.4,2.85700302]
[1734957904783,3.57646042,3351.1,3350.4,2.60608129]
[1734957905396,0.70947081,3351.0,3350.4,2.60608129]
[1734957905586,0.70947081,3351.0,3350.5,1.03087497]
[1734957905780,3.69368081,3351.0,3350.5,1.03087497]
[1734957906087,3.69368081,3351.0,3350.6,0.02886955]
[1734957906809,3.69368081,3351.0,3350.3,1.67887725]
[1734957906991,0.59233042,3351.1,3350.7,0.0288574]
[1734957907193,2.98436,3350.8,3350.7,0.0288574]
[1734957907513,2.98447,3350.7,3350.3,1.24007725]
[1734957908262,2.98427,3350.9,3350.4,1.03108333]
[1734957909201,2.98427,3350.9,3350.2,1.24007725]
[1734957909602,2.98427,3350.9,3350.3,0.25102798]
[1734957909910,3.41802004,3350.9,3350.3,0.25102798]
[1734957910417,3.41802004,3350.9,3350.4,1.79808939]
[1734957911066,3.41802004,3350.9,3350.4,1.54706141]
[1734957911401,3.41802004,3350.9,3350.5,1.03137637]
[1734957911997,3.57650042,3351.1,3350.5,1.03137637]
[1734957912206,3.57650042,3351.1,3350.6,0.4388]
[1734957913222,0.59233042,3351.1,3350.3,1.67887725]
[1734957913718,1.02771956,3350.9,3350.3,1.24007725]
[1734957914067,2.98471,3350.4,3350.3,1.24007725]
[1734957914430,3.38595296,3350.4,3350.3,1.24007725]
[1734957914566,4.17195296,3350.4,3350.3,1.24007725]
[1734957915024,5.19967252,3350.4,3350.3,1.24007725]
[1734957915223,3.79257,3350.0,3349.9,1.24007725]
[1734957915538,4.470314,3350.0,3349.9,1.24007725]
[1734957916007,8.05779848,3350.0,3349.9,1.24007725]
[1734957916178,8.05779848,3350.0,3349.9,7.25e-06]
[1734957916179,9.63551804,3350.0,3349.9,7.25e-06]
[1734957916611,3.79169,3349.3,3349.2,7.25e-06]
[1734957916820,2.98569,3349.3,3349.2,7.25e-06]
[1734957916984,2.98563,3349.4,3349.2,7.25e-06]
[1734957917688,2.98563,3349.4,3348.4,4.01420956]
[1734957918007,3.57251665,3349.4,3348.6,0.44530096]
[1734957918207,2.49052816,3349.8,3349.2,0.4388]
[1734957918573,2.49052816,3349.9,3349.2,0.4388]
[1734957919476,3.57114926,3350.1,3349.2,0.4388]
[1734957919674,3.57114926,3350.1,3349.3,0.44523896]
[1734957920184,2.98483,3350.3,3349.3,0.44523896]
[1734957921085,2.98499,3350.1,3349.3,0.44523896]
[1734957921285,0.60659153,3350.3,3349.3,0.44523896]
[1734957921503,3.59143153,3350.3,3349.2,3.42457]
[1734957922536,2.98465,3350.5,3349.5,0.4388]
[1734957923383,0.58757574,3350.7,3349.9,2.98514]
[1734957923732,3.29872816,3350.9,3350.0,3.42387]
[1734957923894,3.29872816,3350.9,3350.0,0.4388]
[1734957924096,5.36883351,3350.9,3350.0,0.4388]
[1734957924322,4.34111395,3350.9,3350.0,0.4388]
[1734957924529,2.98438,3350.8,3350.0,0.4388]
[1734957927061,2.98446,3350.7,3350.0,0.4388]
[1734957927808,2.98436,3350.8,3350.0,0.4388]
[1734957928112,0.8082,3350.9,3350.0,0.4388]
[1734957928113,2.98459,3350.6,3350.0,0.4388]
[1734957929214,2.98459,3350.6,3350.1,0.02861607]
[1734957930548,0.8082,3350.9,3350.1,0.02861607]
[1734957930757,2.98479,3350.4,3350.1,0.02861607]
[1734957931156,2.98479,3350.4,3349.7,0.4388]
[1734957931648,2.98442,3350.8,3349.8,0.02690087]
[1734957931846,0.8082,3350.9,3349.8,0.02690087]
[1734957931847,2.98489,3350.2,3349.8,0.02690087]
[1734957932054,2.98489,3350.2,3349.7,0.4388]
[1734957932353,2.98489,3350.2,3349.8,0.052853]
[1734957932730,2.98489,3350.2,3349.7,0.4388]
[1734957933050,2.98489,3350.2,3349.8,0.052853]
[1734957933254,2.98489,3350.2,3349.7,0.4388]
[1734957933255,3.366229,3350.2,3349.7,0.4388]
[1734957933453,2.98508,3350.0,3349.8,0.052853]
[1734957933752,2.98508,3350.0,3349.4,0.4388]
[1734957933957,3.366249,3350.2,3349.4,0.4388]
[1734957934154,0.381339,3350.2,3349.5,0.05321021]
[1734957934329,0.60893919,3350.3,3349.5,0.05321021]
[1734957934733,0.60893919,3350.3,3349.6,0.4388]
[1734957935124,0.60893919,3350.3,3349.7,0.05318433]
[1734957937482,3.59375919,3350.3,3349.7,0.05318433]
[1734957937772,2.98491,3350.2,3349.7,0.05318433]
[1734957937941,3.34429492,3350.2,3349.7,0.05318433]
[1734957940583,0.35938492,3350.2,3349.7,0.05318433]
[1734957940741,0.60893919,3350.3,3349.7,0.05318433]
[1734957941390,3.59373919,3350.3,3349.7,0.05318433]
[1734957944393,2.98466,3350.5,3349.7,0.05318433]
[1734957944968,2.98479,3350.4,3349.7,0.05318433]
[1734957945588,0.95358903,3350.7,3349.8,0.4388]
[1734957945906,2.98468,3350.5,3349.8,0.4388]
[1734957947251,2.98472,3350.4,3349.8,0.4388]
[1734957948754,2.98489,3350.3,3349.8,0.4388]
[1734957949154,2.98489,3350.3,3349.9,0.05332079]
[1734957949994,0.59056364,3350.5,3349.9,0.05332079]
[1734957950293,2.98507,3350.0,3349.5,0.4388]
[1734957950763,2.98507,3350.0,3349.6,0.0533596]
[1734957953495,2.98493,3350.2,3349.6,0.0533596]
[1734957953789,2.98474,3350.4,3349.6,0.0533596]
[1734957954392,2.98483,3350.3,3349.6,0.0533596]
[1734957954691,2.98483,3350.3,3349.7,0.25100955]
[1734957955047,2.98483,3350.3,3349.7,0.30435621]
[1734957955450,2.98483,3350.3,3349.8,0.25100955]
[1734957955685,2.98483,3350.3,3349.9,0.05332079]
[1734957955861,3.57522364,3350.5,3349.9,0.05332079]
[1734957956065,3.57522364,3350.5,3350.0,0.4388]
[1734957956495,3.57522364,3350.5,3350.1,0.05329493]
[1734957956848,2.98431,3350.9,3349.9,0.4388]
[1734957957064,2.98431,3350.9,3349.8,2.98523]
[1734957957065,3.567878,3350.9,3350.1,0.4388]
[1734957957263,3.567878,3350.9,3350.2,0.05320082]
[1734957957589,5.47463816,3351.1,3350.2,0.4388]
[1734957957777,5.47463816,3351.1,3350.3,0.05318789]
[1734957958173,5.47463816,3351.1,3350.4,0.4388]
[1734957958375,5.47463816,3351.1,3350.4,0.49197496]
[1734957958576,3.57563031,3351.1,3350.4,0.49197496]
[1734957959082,3.57563031,3351.1,3350.4,1.13967046]
[1734957959402,2.49052816,3351.4,3350.7,2.98442]
[1734957959575,2.49052816,3351.4,3350.8,0.4388]
[1734957959767,2.49052816,3351.4,3350.8,0.49169849]
[1734957959963,2.49052816,3351.6,3350.8,0.49169849]
[1734957960276,2.49052816,3351.6,3350.9,0.4388]
[1734957960477,2.49052816,3351.6,3351.0,0.05274156]
[1734957960478,3.41036218,3351.6,3351.0,0.05274156]
[1734957960711,2.98382,3351.5,3350.9,0.4388]
[1734957960900,2.98382,3351.5,3351.0,0.25080136]
[1734957961204,2.98382,3351.4,3351.0,0.30354292]
[1734957961377,0.3903654,3351.3,3351.0,0.05274156]
[1734957961706,2.98382,3351.4,3351.0,0.05274156]
[1734957961921,2.98394,3351.3,3351.0,0.05274156]
[1734957962095,0.8101,3351.4,3351.0,0.05274156]
[1734957962610,2.9842,3351.0,3350.6,0.4388]
[1734957962987,2.9842,3351.0,3350.7,0.05278034]
[1734957963382,2.9842,3351.0,3350.3,0.4388]
[1734957963383,0.29842,3351.0,3350.3,0.4388]
[1734957963603,2.98457,3350.6,3350.3,0.4388]
[1734957963798,3.74867,3350.8,3350.3,0.4388]
[1734957963990,2.98437,3350.8,3350.3,0.4388]
[1734957965911,1.36436215,3351.1,3350.3,0.4388]
[1734957965912,2.98446,3350.7,3350.3,0.4388]
[1734957966414,2.9843,3350.9,3350.3,0.4388]
[1734957966619,3.58417215,3351.1,3350.3,0.4388]
[1734957967421,2.98422,3351.0,3350.3,0.4388]
[1734957967887,1.59071218,3351.1,3350.3,0.4388]
[1734957968290,2.9842,3351.0,3350.3,0.4388]
[1734957970123,1.59071218,3351.1,3350.3,0.4388]
[1734957970319,2.98427,3350.9,3350.3,0.4388]
[1734957972021,3.97475003,3351.1,3350.3,0.4388]
[1734957972182,2.9841,3351.1,3350.3,0.4388]
[1734957972512,2.9843,3350.9,3350.3,0.4388]
[1734957972713,0.59533309,3351.2,3350.3,0.4388]
[1734957972920,2.98447,3350.7,3350.3,0.4388]
[1734957973075,0.59533309,3351.2,3350.3,0.4388]
[1734957973076,2.9843,3350.9,3350.3,0.4388]
[1734957974218,0.59533309,3351.2,3350.3,0.4388]
[1734957974395,2.98418,3351.0,3350.4,0.05050721]
[1734957974615,0.59533309,3351.2,3350.4,0.05050721]
[1734957974942,2.98435,3350.9,3350.4,0.05050721]
[1734957975767,2.98462,3350.5,3350.3,0.4388]
[1734957976343,2.98462,3350.5,3350.4,0.05050721]
[1734957976838,2.98453,3350.7,3350.4,0.05050721]
[1734957977141,6.70755919,3351.6,3350.7,3.0]
[1734957977345,6.0968102,3351.6,3350.9,0.4388]
[1734957977639,2.98385,3351.4,3350.9,0.4388]
[1734957977937,2.98385,3351.4,3351.0,0.05069777]
[1734957978305,2.98385,3351.4,3350.9,0.4388]
[1734957978637,0.58544137,3351.8,3350.9,0.4388]
[1734957978951,2.98379,3351.5,3350.9,0.4388]
[1734957979116,2.98379,3351.5,3351.0,0.05069777]
[1734957980742,0.58544137,3351.8,3351.0,0.05069777]
[1734957980743,2.98365,3351.6,3351.0,0.05069777]
[1734957982865,0.58544137,3351.8,3351.1,0.4388]
[1734957983159,2.98333,3352.0,3351.3,0.4388]
[1734957983332,3.09336662,3352.4,3351.4,0.4388]
[1734957983509,2.98311,3352.2,3351.5,0.4388]